bitfinex-derivatives/quotes_ETHF0:USTF0_20260214
["timestamp","ask_amount","ask_price","bid_price","bid_amount"]
[1771061453657,4.27387378,2078.7,2077.8,4.70573989]
[1771061453658,4.26905691,2078.5,2077.8,4.70573989]
[1771061454659,4.26905691,2078.5,2077.8,4.70932851]
[1771061454962,4.26905691,2078.5,2077.9,4.94648989]
[1771061466167,4.38858304,2078.6,2078.2,4.28306135]
[1771061468563,4.38858304,2078.5,2078.1,4.52379135]
[1771061468769,4.38858304,2078.3,2078.1,0.24073]
[1771061469662,4.38858304,2078.3,2077.9,4.28306135]
[1771061470168,4.38858304,2078.3,2077.8,0.00358862]
[1771061470169,4.38858304,2078.4,2078.1,4.52379135]
[1771061470569,4.38858304,2078.5,2078.1,4.52379135]
[1771061476067,4.38858304,2078.5,2078.1,0.24073]
[1771061476269,7.28425448,2078.5,2078.1,0.24073]
[1771061476872,4.38858304,2078.4,2078.1,0.24073]
[1771061477169,4.38858304,2078.4,2078.1,4.52379135]
[1771061478474,4.38858304,2078.6,2078.1,4.52379135]
[1771061479472,4.39339991,2078.7,2078.1,4.52379135]
[1771061479873,0.00481687,2078.7,2078.1,4.52379135]
[1771061480065,0.00083327,2078.7,2078.3,4.52377135]
[1771061480266,45.18858304,2078.8,2078.3,4.52377135]
[1771061480676,2.89567144,2079.1,2078.3,4.52377135]
[1771061480974,4.38858304,2079.0,2078.3,4.52377135]
[1771061481169,40.8,2078.9,2078.3,4.52377135]
[1771061481476,45.18858304,2078.9,2078.3,4.52377135]
[1771061483779,4.38858304,2078.9,2078.3,4.52377135]
[1771061484476,4.38858304,2078.9,2077.8,0.00358862]
[1771061484682,4.38858304,2077.8,2076.7,4.28306135]
[1771061484881,2.89567144,2077.6,2076.8,4.52394135]
[1771061485584,7.28425448,2077.6,2076.8,4.5296809]
[1771061486380,4.38858304,2077.5,2076.8,4.5296809]
[1771061486574,4.39414581,2077.5,2076.8,4.5296809]
[1771061487883,2.89567144,2077.4,2076.8,4.5296809]
[1771061488085,4.38858304,2077.3,2076.8,4.5296809]
[1771061488279,4.38858304,2077.4,2076.8,4.5296809]
[1771061489783,4.39414581,2077.5,2076.8,4.5296809]
[1771061490283,2.77e-06,2077.5,2076.8,4.5296809]
[1771061491483,4.50434045,2077.9,2077.4,4.76591998]
[1771061492488,4.51008715,2077.9,2077.4,4.76591998]
[1771061492786,0.0057467,2077.9,2077.4,4.76591998]
[1771061493398,6.03312348,2079.3,2078.1,4.76591998]
[1771061493600,7.57142598,2079.7,2078.1,4.76591998]
[1771061493601,4.17380072,2079.4,2078.1,4.76591998]
[1771061493895,40.8,2078.9,2078.0,0.24074]
[1771061494492,40.80343664,2078.9,2078.0,0.24074]
[1771061494688,0.3072103,2078.8,2078.0,0.24074]
[1771061496897,0.3072103,2078.8,2078.0,5.1037932]
[1771061510912,0.31834293,2078.5,2078.0,5.1037932]
[1771061517513,0.50243116,2078.3,2078.0,5.20289701]
[1771061517907,3.39650649,2078.4,2078.0,5.20289701]
[1771061520015,2.89590441,2078.4,2078.0,5.20289701]
[1771061524112,2.89590441,2078.6,2078.0,5.20289701]
[1771061524311,0.00343664,2078.9,2078.4,4.76735187]
[1771061524512,0.00343664,2078.9,2078.4,4.77082093]
[1771061524717,43.69590441,2079.1,2078.4,4.77082093]
[1771061524912,40.8,2079.1,2078.4,4.77082093]
[1771061525314,0.58643961,2079.0,2078.4,4.77082093]
[1771061526021,0.59161628,2079.0,2078.4,4.77082093]
[1771061527821,0.00517667,2079.0,2078.4,4.77082093]
[1771061534826,0.00517667,2079.0,2078.6,4.76735187]
[1771061538728,6.67e-06,2079.0,2078.8,4.76735187]
[1771061538929,40.8,2079.2,2078.8,4.76735187]
[1771061539832,40.80414062,2079.2,2078.8,4.76735187]
[1771061540033,41.44987316,2079.2,2078.8,4.76735187]
[1771061541537,40.80414062,2079.2,2078.8,4.76735187]
[1771061541740,0.00414062,2079.2,2078.8,4.76735187]
[1771061542448,40.8,2079.4,2078.8,4.76735187]
[1771061543648,40.80444065,2079.4,2078.8,4.76735187]
[1771061544543,0.66092837,2079.3,2078.8,4.76735187]
[1771061548249,40.80444065,2079.4,2078.8,4.76735187]
[1771061549248,0.01,2079.3,2078.8,4.76735187]
[1771061550249,40.80444065,2079.4,2078.8,4.76735187]
[1771061552749,0.57739575,2079.8,2079.0,4.94149146]
[1771061553147,40.8,2079.7,2079.0,4.94149146]
[1771061553548,40.8,2079.7,2079.2,4.94149146]
[1771061553748,40.80623868,2079.7,2079.2,4.94149146]
[1771061555953,41.42952273,2079.7,2079.2,4.94149146]
[1771061559353,40.80623868,2079.7,2079.2,4.94149146]
[1771061561561,41.41581069,2079.7,2079.2,4.94149146]
[1771061563162,40.80623868,2079.7,2079.2,4.94149146]
[1771061563663,41.40614463,2079.7,2079.2,4.94149146]
[1771061563958,41.40614463,2079.7,2078.8,2.89435981]
[1771061563959,0.59565681,2079.4,2078.4,0.00346906]
[1771061564162,0.59565681,2079.4,2078.5,4.64336759]
[1771061564758,0.59565681,2079.4,2078.7,4.64322916]
[1771061566058,0.59163154,2079.2,2078.7,4.64322916]
[1771061566566,0.59163154,2079.0,2078.4,0.00346906]
[1771061566760,2.89435981,2078.9,2078.4,0.00346906]
[1771061566963,2.89435981,2078.9,2078.1,4.64620322]
[1771061566964,0.58740101,2078.8,2078.1,4.64620322]
[1771061567662,0.61227333,2078.7,2078.1,4.64620322]
[1771061567967,0.61227333,2078.7,2078.1,4.65186562]
[1771061568360,0.61772814,2078.5,2078.0,4.87469123]
[1771061569461,0.61772814,2078.5,2078.0,4.88021248]
[1771061569960,0.61772814,2078.5,2078.0,0.24626125]
[1771061570361,0.61772814,2078.5,2078.0,4.8365356]
[1771061570563,0.71096891,2078.3,2078.0,0.00552125]
[1771061570762,0.71096891,2078.3,2077.9,4.59027435]
[1771061571264,0.71096891,2078.3,2077.7,4.59027435]
[1771061571660,0.71096891,2078.3,2077.7,4.59401761]
[1771061573875,0.78708635,2078.1,2077.7,4.59401761]
[1771061574167,0.79276189,2078.1,2077.7,4.59401761]
[1771061574662,0.00567554,2078.1,2077.7,4.59401761]
[1771061575870,0.78597076,2078.1,2077.7,4.59401761]
[1771061576263,0.78597076,2078.1,2077.7,0.00374326]
[1771061576463,0.78597076,2078.1,2077.5,4.59027435]
[1771061577381,0.78597076,2078.1,2077.5,4.59484251]
[1771061578967,0.76572462,2077.9,2077.5,0.00456816]
[1771061579170,0.76572462,2077.9,2077.4,4.83108435]
[1771061579372,0.76572462,2077.9,2077.4,0.24081]
[1771061579773,2.89435981,2078.0,2077.4,4.83108435]
[1771061579974,0.00567554,2078.1,2077.4,4.83108435]
[1771061580273,0.77020807,2078.1,2077.4,4.83486984]
[1771061583674,0.00567554,2078.1,2077.4,4.83486984]
[1771061585066,0.85572098,2078.1,2077.4,4.83486984]
[1771061585764,0.00567554,2078.1,2077.4,4.83486984]
[1771061587076,3.80117225,2078.0,2077.4,4.83486984]
[1771061588570,2.89691068,2078.0,2077.4,4.83486984]
[1771061589673,0.80868286,2077.9,2077.4,4.83486984]
[1771061590074,3.70151867,2077.8,2077.4,4.83486984]
[1771061590373,0.80475434,2077.7,2077.4,4.83486984]
[1771061590778,3.70166502,2077.8,2077.4,0.71763267]
[1771061591278,3.70166502,2077.8,2077.4,0.95844267]
[1771061591478,7.54584212,2077.8,2077.4,0.95844267]
[1771061591877,2.89691068,2077.8,2077.4,0.95844267]
[1771061592078,4.64893144,2077.9,2077.4,0.95844267]
[1771061595481,4.65460698,2078.1,2077.4,3.85535335]
[1771061598482,0.00567554,2078.1,2077.4,3.85535335]
[1771061601181,0.00567554,2078.1,2077.7,4.84997336]
[1771061601374,7.54584212,2078.4,2077.7,4.84997336]
[1771061602178,4.64893144,2078.4,2077.7,4.84997336]
[1771061602487,0.00529247,2078.4,2077.9,4.84997336]
[1771061602883,40.80529247,2078.4,2077.9,4.84997336]
[1771061603587,4.64893144,2078.3,2077.9,4.84997336]
[1771061609990,40.80529247,2078.4,2078.1,4.84997336]
[1771061612987,0.00529247,2078.4,2078.1,4.84997336]
[1771061613192,4.60357876,2078.6,2078.1,4.84997336]
[1771061613590,40.8,2078.5,2078.1,4.84997336]
[1771061614188,0.00417386,2078.5,2078.1,4.84997336]
[1771061616791,4.49284679,2078.5,2078.1,4.84997336]
[1771061617193,0.00417386,2078.5,2078.1,4.84997336]
[1771061622203,4.2943961,2078.5,2078.1,4.84997336]
[1771061622803,0.00417386,2078.5,2078.1,4.84997336]
[1771061631316,4.08467193,2078.5,2078.1,4.84997336]
[1771061633516,4.08467193,2078.5,2078.0,4.83033171]
[1771061633712,6.93027423,2078.4,2078.0,4.83033171]
[1771061634818,4.0127178,2078.3,2078.0,0.24074]
[1771061635019,4.0127178,2078.3,2077.9,4.58959171]
[1771061636108,4.0127178,2078.3,2078.0,0.24074]
[1771061636519,4.0127178,2078.3,2078.0,4.83033171]
[1771061637714,4.0127178,2078.3,2078.0,0.24074]
[1771061639219,0.00417386,2078.5,2078.3,4.58959171]
[1771061639420,44.72822135,2078.7,2078.3,4.58959171]
[1771061639721,3.92822135,2078.6,2078.3,4.58959171]
[1771061640318,3.93192448,2078.6,2078.3,4.58959171]
[1771061641023,0.00370313,2078.6,2078.3,4.58959171]
[1771061643626,0.00370313,2078.6,2077.5,2.89691068]
[1771061643627,3.88458644,2078.3,2077.5,0.2408]
[1771061643828,3.86477289,2077.9,2077.5,4.70509781]
[1771061644730,6.76275418,2078.0,2077.5,4.70509781]
[1771061645429,3.73708282,2077.9,2077.5,4.46429781]
[1771061646827,6.5966097,2077.8,2077.4,4.4680833]
[1771061647932,2.89691068,2077.8,2077.4,4.4680833]
[1771061648829,3.5895111,2077.9,2077.4,4.4680833]
[1771061650034,3.57662351,2077.8,2077.2,4.46429781]
[1771061650832,2.89783674,2077.7,2077.2,4.46429781]
[1771061651037,3.55949399,2077.6,2077.2,4.47039182]
[1771061652131,3.55949399,2077.6,2077.0,4.70515781]
[1771061652936,44.33845986,2077.5,2077.0,4.70515781]
[1771061653135,44.33845986,2077.5,2077.0,4.70859341]
[1771061657036,40.8,2077.5,2077.0,4.70859341]
[1771061658838,44.04606145,2077.5,2077.0,4.70859341]
[1771061660438,3.24606145,2077.5,2077.0,4.70859341]
[1771061660640,3.23027756,2077.9,2077.0,4.70859341]
[1771061660941,3.21344964,2077.7,2077.0,4.70859341]
[1771061663843,40.8,2077.8,2077.0,4.70859341]
[1771061664238,43.86625701,2077.8,2077.0,4.70859341]
[1771061664441,40.8,2077.8,2077.5,4.46429781]
[1771061664641,2.89783674,2078.4,2077.5,4.46429781]
[1771061664840,3.06625701,2078.3,2077.5,4.46429781]
[1771061665238,3.07580565,2078.1,2077.5,4.46429781]
[1771061665438,3.07580565,2078.3,2077.7,4.46429781]
[1771061666437,2.89783674,2078.4,2077.7,4.46429781]
[1771061666438,3.0614163,2078.1,2077.7,4.46429781]
[1771061666643,43.8614163,2078.2,2077.7,4.46429781]
[1771061666946,44.08492813,2078.2,2077.7,4.46429781]
[1771061667343,40.8,2078.2,2077.8,0.24077]
[1771061667539,40.8,2078.2,2077.9,4.46429781]
[1771061673743,43.89656704,2078.2,2077.9,4.46429781]
[1771061674044,3.09656704,2078.1,2077.6,4.3062757]
[1771061678952,3.02575327,2077.9,2077.3,4.5470957]
[1771061682255,2.98635364,2078.0,2077.3,4.5470957]
[1771061682646,2.98635364,2078.1,2077.6,4.31239633]
[1771061682849,40.8,2078.2,2077.6,4.31239633]
[1771061682850,43.77146963,2078.2,2077.6,4.31239633]
[1771061683056,2.97146963,2078.1,2077.6,4.31239633]
[1771061684764,2.97146963,2078.1,2077.5,0.2408]
[1771061684954,2.97146963,2078.1,2077.5,4.55319633]
[1771061685155,2.97146963,2078.1,2077.5,0.2408]
[1771061688063,2.97146963,2078.1,2077.5,4.55319633]
[1771061689166,2.97146963,2078.1,2077.5,0.2408]
[1771061690668,2.90060746,2077.7,2077.0,4.31583193]
[1771061690869,2.8867598,2077.9,2077.0,4.55669193]
[1771061691070,2.8867598,2078.1,2077.3,4.31239633]
[1771061692166,2.8867598,2078.1,2077.5,4.31239633]
[1771061695969,43.69783674,2078.2,2077.4,0.24081]
[1771061695970,2.81719837,2077.9,2077.4,0.24081]
[1771061696768,2.81719837,2077.9,2077.4,4.55320633]
[1771061697874,2.7867107,2078.1,2077.4,4.55320633]
[1771061698770,43.58815677,2078.2,2077.4,4.55320633]
[1771061699265,2.78711745,2078.1,2077.4,4.55320633]
[1771061702570,40.8,2078.2,2077.4,4.55320633]
[1771061705379,43.47782114,2078.2,2077.4,4.55320633]
[1771061709182,2.6162867,2078.4,2077.7,4.05967718]
[1771061710184,2.60592219,2078.3,2077.9,4.05967718]
[1771061710883,2.61473305,2078.1,2077.8,4.30044718]
[1771061711384,5.49955191,2078.2,2077.8,4.30044718]
[1771061711584,2.60278685,2078.1,2077.8,4.30044718]
[1771061716790,40.8,2078.4,2077.9,4.05967718]
[1771061717189,43.31817379,2078.4,2077.9,4.05967718]
[1771061717591,0.00370313,2078.6,2078.1,4.05967718]
[1771061717889,2.51086381,2078.6,2078.1,4.05967718]
[1771061718687,46.20762887,2078.6,2078.1,4.05967718]
[1771061718880,2.51773911,2078.5,2078.1,4.05967718]
[1771061720388,43.70046819,2078.6,2078.1,4.05967718]
[1771061720389,46.18359211,2078.6,2078.1,4.05967718]
[1771061721391,2.4672486,2078.5,2078.1,4.05967718]
[1771061721587,43.70046819,2078.6,2078.1,4.05967718]
[1771061721787,2.4672486,2078.5,2078.1,4.05967718]
[1771061723592,22.42001198,2079.0,2078.1,4.05967718]
[1771061723793,3.99056085,2079.2,2078.6,4.05967718]
[1771061724188,40.8,2079.1,2078.6,4.05967718]
[1771061724689,44.79445715,2079.1,2078.6,4.06459021]
[1771061724888,3.99445715,2079.1,2078.6,4.06459021]
[1771061725097,3.99445715,2079.1,2078.7,0.24066]
[1771061725294,3.99445715,2079.1,2078.8,4.05967718]
[1771061725490,6.89122221,2079.1,2078.7,0.24066]
[1771061725696,3.99056085,2079.0,2078.7,0.24066]
[1771061727296,3.99056085,2079.0,2078.7,4.30033718]
[1771061730700,3.99056085,2079.0,2078.7,0.24066]
[1771061730894,3.99056085,2079.0,2078.6,0.00491303]
[1771061732199,3.99056085,2079.0,2078.7,0.24066]
[1771061733798,3.86829512,2078.8,2078.6,0.00491303]
[1771061733995,3.86829512,2078.6,2078.2,4.06169128]
[1771061734899,3.86829512,2078.6,2078.2,4.06709796]
[1771061736198,2.89676506,2078.3,2077.7,4.06174128]
[1771061736400,3.86829512,2078.2,2077.7,4.06174128]
[1771061736703,2.89676506,2078.3,2077.7,4.06174128]
[1771061737190,2.89676506,2078.3,2077.7,4.06750622]
[1771061740807,6.88405464,2078.3,2077.7,4.06750622]
[1771061742503,3.98728958,2078.2,2077.7,4.06750622]
[1771061746602,3.98728958,2078.5,2078.0,4.08033218]
[1771061747100,3.98728958,2078.5,2077.9,0.24076]
[1771061747399,3.98728958,2077.9,2077.5,14.14229334]
[1771061747601,3.98728958,2077.9,2077.6,4.08033218]
[1771061747801,3.98728958,2078.1,2077.6,4.08033218]
[1771061748599,3.98728958,2078.1,2077.6,4.08602683]
[1771061750912,3.98728958,2078.4,2078.0,4.08033218]
[1771061751204,3.98728958,2078.7,2078.0,4.08033218]
[1771061751403,3.98728958,2078.9,2078.3,4.08033218]
[1771061752005,3.98728958,2078.8,2078.3,4.08033218]
[1771061752606,44.78728958,2078.8,2078.3,4.08033218]
[1771061754412,3.98728958,2078.7,2078.3,4.08033218]
[1771061754713,3.98728958,2078.7,2078.2,4.32105218]
[1771061756113,3.98728958,2078.7,2078.2,0.24072]
[1771061756410,3.98728958,2078.7,2078.2,4.32105218]
[1771061758011,40.8,2078.8,2078.2,4.32105218]
[1771061758310,44.78728958,2078.8,2078.3,4.08033218]
[1771061758811,3.98728958,2078.7,2078.3,4.08033218]
[1771061759007,40.8,2078.8,2078.4,0.2407]
[1771061759214,3.98728958,2078.9,2078.5,4.08033218]
[1771061759808,3.98728958,2078.8,2078.5,4.08033218]
[1771061760815,0.48999689,2078.8,2078.5,4.08033218]
[1771061761815,0.48999689,2078.8,2078.4,4.09123085]
[1771061763115,0.48999689,2078.8,2078.4,0.2407]
[1771061763314,0.48999689,2078.8,2078.4,4.09123085]
[1771061764015,0.48999689,2078.8,2078.4,0.2407]
[1771061764511,3.38676195,2078.8,2078.4,0.2407]
[1771061766020,3.38676195,2078.8,2078.1,3.85053085]
[1771061766318,1.75984551,2078.5,2078.1,3.85053085]
[1771061767218,1.75984551,2078.5,2077.9,4.09128085]
[1771061768020,2.89676506,2078.6,2077.9,4.09128085]
[1771061768215,4.66213886,2078.6,2077.9,4.09128085]
[1771061768522,1.7646685,2078.8,2078.1,4.09126085]
[1771061778631,1.75536364,2078.8,2078.1,4.09126085]
[1771061779927,40.8,2078.9,2078.1,4.09126085]
[1771061780129,42.54546521,2078.9,2078.1,4.09126085]
[1771061780333,1.74608893,2078.8,2078.1,4.09126085]
[1771061790628,40.8,2078.9,2078.1,4.09126085]
[1771061791039,42.47744088,2078.9,2078.1,4.09126085]
[1771061791638,40.8,2078.9,2078.1,4.09126085]
[1771061792540,42.46371205,2078.9,2078.1,4.09126085]
[1771061794643,1.65036351,2078.8,2078.1,4.09126085]
[1771061795545,40.8,2078.9,2078.1,4.09126085]
[1771061795736,1.68161632,2079.5,2078.6,3.77543655]
[1771061795939,1.67189168,2079.4,2078.6,3.77543655]
[1771061796141,42.47189168,2079.4,2078.6,3.77543655]
[1771061796947,1.66367457,2079.3,2078.6,3.77543655]
[1771061797337,1.69873451,2079.1,2078.5,4.01612655]
[1771061797542,1.69873451,2078.9,2078.5,0.24069]
[1771061798144,1.68918881,2079.0,2078.5,4.01612655]
[1771061798745,1.69038141,2079.3,2078.5,4.01612655]
[1771061798945,40.80459062,2079.4,2078.5,4.01612655]
[1771061798946,42.48549146,2079.4,2078.5,4.01612655]
[1771061799148,42.48549146,2079.4,2078.7,3.77543655]
[1771061799546,1.58349477,2079.3,2078.7,3.77543655]
[1771061800150,1.57004749,2079.2,2078.7,3.77543655]
[1771061800845,1.57004749,2079.2,2078.5,0.24069]
[1771061801045,1.56261009,2079.0,2078.5,0.24069]
[1771061803051,1.56261009,2079.0,2078.5,4.03505768]
[1771061804442,40.80459062,2079.4,2078.5,4.03505768]
[1771061804643,1.51163042,2079.3,2078.5,4.03505768]
[1771061813557,40.80459062,2079.4,2077.6,0.00569465]
[1771061813558,1.46734814,2078.6,2077.6,0.00569465]
[1771061813861,1.46734814,2078.4,2077.6,0.00569465]
[1771061814163,1.45896601,2078.2,2077.4,3.79436768]
[1771061814559,1.45896601,2078.2,2076.7,4.03525768]
[1771061815261,1.45896601,2078.2,2077.3,3.79436768]
[1771061815462,1.45896601,2078.2,2077.5,3.79436768]
[1771061816854,40.8,2078.3,2077.7,3.79436768]
[1771061817160,1.56194765,2078.2,2077.8,4.03513768]
[1771061818766,42.3547861,2078.3,2077.8,4.03513768]
[1771061820670,1.56552241,2078.2,2077.8,4.03513768]
[1771061821265,1.56997945,2079.1,2077.8,4.03513768]
[1771061821569,1.56997945,2078.9,2077.8,4.03513768]
[1771061821767,1.56997945,2078.7,2077.8,4.03513768]
[1771061825768,1.59489723,2078.7,2077.8,4.03513768]
[1771061827175,40.8,2078.8,2078.3,3.65061881]
[1771061827374,1.59390563,2079.0,2078.3,3.65516338]
[1771061827770,42.39390563,2079.0,2078.3,3.65516338]
[1771061827975,1.58629365,2078.9,2078.3,3.65516338]
[1771061829076,40.8,2079.0,2078.3,3.65516338]
[1771061829377,1.57962029,2079.3,2078.3,3.65516338]
[1771061829767,1.56787977,2079.1,2078.3,3.65516338]
[1771061830077,40.8,2079.2,2078.5,3.65061881]
[1771061830380,42.36042508,2079.2,2078.5,3.65061881]
[1771061831772,42.36042508,2079.2,2078.3,0.00454457]
[1771061831773,42.34858606,2079.2,2078.6,0.24067]
[1771061832078,42.34858606,2079.2,2078.7,3.65061881]
[1771061832376,1.54897419,2079.1,2078.7,3.65061881]
[1771061838979,1.50243384,2079.2,2078.7,3.65061881]
[1771061839973,42.30074795,2079.3,2078.7,3.65061881]
[1771061840978,1.49797511,2079.2,2078.7,3.65061881]
[1771061842379,40.8,2079.3,2078.7,3.65061881]
[1771061842879,0.00459062,2079.4,2078.7,3.65061881]
[1771061843077,0.00459062,2079.4,2078.8,0.24065]
[1771061843278,0.00459062,2079.4,2078.5,4.16733548]
[1771061843279,42.37038331,2079.6,2079.0,0.24063]
[1771061843471,40.8,2079.6,2079.1,3.65061881]
[1771061843682,1.53110889,2079.8,2079.1,3.65061881]
[1771061844181,1.52808335,2080.0,2079.1,3.65061881]
[1771061844482,1.52808335,2080.0,2078.5,4.16733548]
[1771061844483,1.53307856,2080.0,2079.3,3.65061881]
[1771061844679,40.8,2079.9,2079.3,3.65061881]
[1771061845474,1.53307856,2080.0,2079.3,3.65061881]
[1771061845876,0.00499521,2080.0,2079.5,3.65061881]
[1771061846785,1.67796648,2080.1,2079.5,3.65061881]
[1771061847375,4.16733548,2080.6,2079.5,3.65061881]
[1771061847684,1.63697813,2080.5,2079.5,3.65061881]
[1771061848183,1.63697813,2080.5,2079.7,3.65061881]
[1771061849282,40.8,2080.4,2079.7,3.65061881]
[1771061850281,42.435933,2080.4,2079.7,3.65061881]
[1771061850481,1.635933,2080.4,2079.7,3.65061881]
[1771061850681,1.63620314,2080.5,2079.7,3.65061881]
[1771061850877,42.43620314,2080.5,2079.7,3.65061881]
[1771061852383,0.00360436,2080.6,2079.1,10.47480489]
[1771061852384,0.00360436,2080.6,2079.9,3.74400218]
[1771061852589,0.00360436,2080.6,2079.9,3.74972327]
[1771061852888,40.80360436,2080.6,2079.9,3.74972327]
[1771061853587,0.00360436,2080.6,2079.9,3.74972327]
[1771061854490,0.00360436,2080.6,2079.9,0.00572109]
[1771061854491,1.6140681,2080.6,2079.9,0.00572109]
[1771061854792,1.61046374,2080.5,2079.9,0.00572109]
[1771061855088,1.61046374,2080.5,2079.9,3.74972327]
[1771061860093,1.61046374,2080.5,2079.9,0.00572109]
[1771061860488,1.61046374,2080.5,2079.9,3.78334345]
[1771061862895,1.55048385,2080.4,2079.9,3.78334345]
[1771061864393,1.54658819,2080.3,2079.9,3.78334345]
[1771061869894,3.57113613,2080.4,2079.9,3.78334345]
[1771061870097,1.60655505,2080.3,2079.9,3.78334345]
[1771061871098,3.56673088,2080.4,2079.9,3.78334345]
[1771061871693,1.60561678,2080.3,2079.9,3.78334345]
[1771061872496,1.96227988,2080.4,2079.8,0.24054]
[1771061872497,1.96227988,2080.2,2079.8,4.01816236]
[1771061872698,1.96227988,2080.4,2079.8,4.01816236]
[1771061872899,3.56358922,2080.4,2079.8,4.01816236]
[1771061873597,3.56358922,2080.4,2079.8,4.02299074]
[1771061874502,1.62559266,2080.3,2079.8,4.02299074]
[1771061874703,1.62559266,2080.1,2079.8,4.02299074]
[1771061875597,3.55847048,2080.2,2079.8,4.02299074]
[1771061877400,0.00360436,2080.6,2079.8,4.02299074]
[1771061877401,1.59626192,2080.3,2079.8,4.02299074]
[1771061878305,1.96227988,2080.4,2079.8,4.02299074]
[1771061878604,1.59413025,2080.5,2079.8,4.02299074]
[1771061880706,1.5930129,2080.3,2079.8,4.02299074]
[1771061881295,1.96227988,2080.4,2079.8,4.02299074]
[1771061881502,3.55701176,2080.4,2079.8,4.02299074]
[1771061883405,1.57405271,2080.3,2079.8,4.02299074]
[1771061884306,3.5345376,2080.4,2079.8,4.02299074]
[1771061885502,3.52000137,2080.6,2079.8,4.02299074]
[1771061885805,1.55411713,2080.5,2079.8,4.02299074]
[1771061886202,1.96227988,2080.4,2079.8,4.02299074]
[1771061886402,1.5523676,2080.5,2079.8,4.02299074]
[1771061886803,4.03385125,2080.9,2079.9,1.96227988]
[1771061887012,3.73239627,2081.6,2081.0,3.54977405]
[1771061887208,3.73239627,2081.5,2081.0,3.54977405]
[1771061887706,3.73239627,2081.3,2080.3,2.20275988]
[1771061888003,0.00549039,2081.3,2080.6,3.54977405]
[1771061888408,3.73788666,2081.3,2080.6,3.54977405]
[1771061890605,0.00549039,2081.3,2080.8,3.54977405]
[1771061891099,3.73239627,2081.5,2080.8,3.54977405]
[1771061891304,3.73239627,2081.6,2081.0,3.54977405]
[1771061891709,3.73239627,2081.3,2080.9,3.79018405]
[1771061892106,3.7374126,2081.3,2080.9,3.79018405]
[1771061892306,3.7374126,2081.3,2080.1,3.54977405]
[1771061892307,1.96227988,2081.0,2080.1,3.54977405]
[1771061892511,3.73239627,2081.1,2080.2,3.54977405]
[1771061892711,3.73239627,2081.1,2080.4,3.54977405]
[1771061893109,3.73239627,2081.1,2080.3,0.24047]
[1771061893313,3.73239627,2081.0,2080.3,3.79024405]
[1771061895014,3.73239627,2080.9,2080.3,3.79024405]
[1771061895407,6.13559689,2080.9,2080.3,3.79024405]
[1771061896013,3.73239627,2080.8,2080.3,3.79024405]
[1771061896507,3.73239627,2080.6,2080.3,0.24047]
[1771061897017,3.73239627,2080.5,2080.3,0.24047]
[1771061897216,3.73239627,2080.5,2080.1,3.54977405]
[1771061897615,6.13559689,2080.5,2080.1,3.54977405]
[1771061897816,3.73239627,2080.5,2079.8,3.55460243]
[1771061898112,6.13559689,2080.5,2079.8,3.55460243]
[1771061898316,3.73239627,2080.3,2079.8,3.55460243]
[1771061898719,3.73239627,2080.1,2079.8,3.55460243]
[1771061899421,40.8,2080.4,2079.8,3.55460243]
[1771061900021,46.93559689,2080.4,2079.8,3.55460243]
[1771061900816,3.73239627,2080.3,2079.8,3.55460243]
[1771061901416,6.13559689,2080.2,2079.8,3.55460243]
[1771061901716,3.73239627,2080.2,2079.8,3.55460243]
[1771061902322,6.13559689,2080.2,2079.8,3.55460243]
[1771061902724,3.73239627,2080.1,2079.8,0.00482838]
[1771061902919,3.73239627,2080.1,2079.8,3.55460243]
[1771061903117,2.40320062,2080.1,2079.8,3.55460243]
[1771061903424,3.73239627,2080.3,2079.8,3.55460243]
[1771061903620,2.40320062,2080.3,2079.8,3.55460243]
[1771061904023,6.13559689,2080.3,2079.8,3.55460243]
[1771061904724,44.53239627,2080.4,2079.9,0.24052]
[1771061905018,3.73239627,2080.3,2080.0,3.54977405]
[1771061905223,3.73239627,2080.5,2080.0,3.54977405]
[1771061905624,3.73239627,2080.4,2080.0,3.54977405]
[1771061905827,2.40320062,2080.3,2080.0,3.54977405]
[1771061906026,6.13559689,2080.3,2080.0,3.54977405]
[1771061906327,6.13559689,2080.2,2079.9,3.79029405]
[1771061906529,3.73239627,2080.4,2079.9,3.79029405]
[1771061906825,3.73239627,2080.3,2079.9,3.79029405]
[1771061907423,6.13559689,2080.3,2079.9,3.79029405]
[1771061907623,2.40320062,2080.3,2079.9,3.79029405]
[1771061908423,40.8,2080.5,2079.9,3.79029405]
[1771061908731,3.73239627,2080.5,2079.9,3.79029405]
[1771061908929,3.73239627,2081.1,2079.9,3.79029405]
[1771061909128,3.73239627,2080.8,2079.9,3.79029405]
[1771061909625,6.13559689,2080.7,2079.9,3.79029405]
[1771061909826,3.73239627,2080.9,2080.3,0.24047]
[1771061910033,3.73239627,2080.9,2080.4,3.54977405]
[1771061910332,3.73239627,2080.9,2080.3,3.79024405]
[1771061910525,2.40320062,2080.7,2080.3,3.79024405]
[1771061910721,3.73239627,2080.6,2080.3,0.24047]
[1771061911124,6.24273823,2080.5,2080.3,0.24047]
[1771061911325,3.83953761,2080.5,2080.3,0.24047]
[1771061911526,2.40320062,2080.4,2080.3,0.24047]
[1771061913232,2.40320062,2080.4,2079.9,3.03343007]
[1771061913432,3.83953761,2080.5,2079.9,3.03343007]
[1771061913634,2.40320062,2080.4,2079.9,3.03343007]
[1771061913835,40.8,2081.0,2079.9,3.03343007]
[1771061914039,3.83953761,2080.7,2079.9,3.03343007]
[1771061914237,3.83953761,2080.7,2080.1,3.0341307]
[1771061914529,3.83953761,2080.6,2080.1,3.0341307]
[1771061914726,3.83953761,2080.6,2080.0,3.27461803]
[1771061915133,3.83953761,2080.4,2080.0,3.27461803]
[1771061915535,6.24273823,2080.4,2080.0,3.27461803]
[1771061915731,3.83953761,2080.4,2080.0,3.27461803]
[1771061915933,3.83953761,2080.9,2080.0,3.27461803]
[1771061916240,3.83953761,2080.5,2080.0,3.27461803]
[1771061916536,6.24273823,2080.7,2080.0,3.27461803]
[1771061916733,3.83953761,2080.7,2080.0,3.27461803]
[1771061917142,6.24273823,2080.5,2080.0,3.27461803]
[1771061917340,3.83953761,2080.5,2080.0,3.27461803]
[1771061917541,2.40320062,2080.4,2080.0,3.27461803]
[1771061917842,1.6217757,2080.4,2080.0,3.27461803]
[1771061918143,1.6217757,2080.3,2080.0,3.27461803]
[1771061918340,3.83953761,2080.5,2080.0,3.27461803]
[1771061918539,1.6217757,2080.3,2080.0,3.27461803]
[1771061918740,3.83953761,2080.5,2080.0,3.27461803]
[1771061919037,1.6217757,2080.3,2080.0,3.27461803]
[1771061919443,3.83953761,2080.4,2080.0,3.27461803]
[1771061919643,1.37412977,2080.2,2080.0,3.27461803]
[1771061919839,3.83953761,2080.5,2080.0,3.27461803]
[1771061920040,1.37412977,2080.3,2080.0,3.27461803]
[1771061920240,3.88343594,2080.4,2080.0,3.27461803]
[1771061920543,0.86053977,2080.2,2080.0,3.27461803]
[1771061920837,3.88343594,2080.4,2080.0,3.27461803]
[1771061921043,0.27813977,2080.2,2080.0,3.27461803]
[1771061921245,3.88343594,2080.4,2080.0,3.27461803]
[1771061923345,3.88343594,2080.9,2080.0,3.27461803]